Cogmind - Beta 12 X1 @@@ ROGUE MODE // 2022.07.02 @ 03:17:19 Player: youngster Result: Destroyed by 8R-AWN with 8R-AWN's Boregun Performance ------------- Evolutions (1) 500 Regions Visited (5) 1000 Robots Destroyed (77) 385 Value Destroyed (1860) 1860 Prototype IDs (45) 900 Alien Tech Used (0) 0 Bonus (-1420) -1420 TOTAL SCORE: 3225 Bonus ------- High Alert Combat Kills 51 Follower Combat Kills 25 Aligned with FarCom 300 Friendly Fire -1796 Cogmind --------- Core Integrity 0/400 Matter 53/300 Energy 100/100 System Corruption 0% Temperature Cool (0) Movement Treading (320) Ox2 Location -9/Exiles Parts ------- > --- POWER (1) -------- (None) > --- PROPULSION (3) --- Light Treads Light Treads Compact Wheel > --- UTILITY (3) ------ Huge Storage Unit > --- WEAPON (2) ------- Improved Assault Rifle Improved Assault Rifle > --- INVENTORY (25) --- Heavy Ion Engine Light Treads Light Treads Armored Huge Wheel Advanced Visual Processing Unit Improved Terrain Scanner Seismic Detector Transport Network Coupler Improved Assault Rifle Improved Assault Rifle Improved Assault Rifle Improved Light Cannon EMP Blaster Rocket Launcher Rocket Launcher Improved Datajack Flail Peak State ------------ > --- POWER ------------ Heavy Ion Engine > --- PROPULSION ------- Light Treads Improved Treads Compact Wheel > --- UTILITY ---------- Huge Storage Unit Improved Propulsion Shielding Light Armor Plating > --- WEAPON ----------- Improved Assault Rifle Improved Assault Rifle > --- INVENTORY -------- Heavy Ion Engine Light Treads Light Treads Light Treads Light Treads Light Treads Light Treads High-capacity Matter Pod Advanced Visual Processing Unit Seismic Detector Light Armor Plating Light Armor Plating Improved Assault Rifle Improved Assault Rifle Improved Assault Rifle Improved Assault Rifle Improved Assault Rifle Improved Light Cannon EMP Blaster Grenade Launcher Rocket Launcher Rocket Launcher Datajack Mace Flail [Rating: 22] Favorites ----------- Power Heavy Ion Engine Engine Heavy Ion Engine Propulsion Light Treads Treads Light Treads Wheel Compact Wheel Utility Light Armor Plating Device Seismic Detector Storage Huge Storage Unit Protection Light Armor Plating Weapon Improved Assault Rifle Energy Gun Medium Laser Ballistic Gun Improved Assault Rifle Ballistic Cannon Improved Light Cannon Launcher Rocket Launcher Impact Weapon Flail Special Melee Weapon Improved Datajack Build | -11 -10 -10 -9 -9 -9 ------- Run | Scr Mat Min Mat Min Exi Slots Evolved 2 | . . . 2 . . Power . | . . . . . . Propulsion 1 | . . . 1 . . Utility 1 | . . . 1 . . Weapon . | . . . . . . Parts Attached 88 | 6 11 8 44 5 14 Power 6 | 1 2 . 3 . . Engine 6 | 1 2 . 3 . . Core . | . . . . . . Reactor . | . . . . . . Propulsion 23 | 2 2 . 13 1 5 Treads 18 | 2 2 . 10 . 4 Leg . | . . . . . . Wheel 5 | . . . 3 1 1 Hover . | . . . . . . Flight . | . . . . . . Utility 17 | 1 3 . 12 . 1 Device 4 | . . . 4 . . Storage 5 | 1 2 . 2 . . Processor . | . . . . . . Hackware . | . . . . . . Protection 8 | . 1 . 6 . 1 Artifact . | . . . . . . Weapon 42 | 2 4 8 16 4 8 Energy Gun 4 | 1 1 2 . . . Energy Cannon . | . . . . . . Ballistic Gun 21 | 1 1 1 11 2 5 Ballistic Cannon 3 | . . 2 . 1 . Launcher 8 | . 2 2 1 1 2 Special Weapon . | . . . . . . Impact Weapon 5 | . . 1 4 . . Slashing Weapon . | . . . . . . Piercing Weapon . | . . . . . . Special Melee Weapon 1 | . . . . . 1 Unidentified Prototypes 1 | . . . 1 . . Parts Lost 13 | . . 1 3 . 9 Power 2 | . . . 1 . 1 Propulsion 5 | . . . 1 . 4 Utility 4 | . . 1 1 . 2 Weapon 2 | . . . . . 2 Highest Loss Streak 6 | . . 1 2 . 6 To Critical Strikes 7 | . . . . . 7 Average Slot Usage (%) 97 | . 93 95 98 100 97 Engine 11 | . 14 14 10 11 10 Treads 24 | . 27 28 22 22 22 Wheel 6 | . . . 10 11 10 Device 3 | . . . 4 11 3 Storage 12 | . 14 14 13 11 11 Protection 12 | . 8 10 13 11 16 Energy Gun 2 | . 8 5 . . . Ballistic Gun 17 | . 19 19 17 13 18 Ballistic Cannon 1 | . . 3 . 3 . Impact Weapon 1 | . . . 3 3 . Naked Turns . | . . . . . . Heaviest Build 100 | 14 50 50 100 99 100 Greatest Support 60 | 40 40 40 60 16 16 Greatest Overweight (x) 6 | . 1 1 6 6 6 Average Overweight (x) 4 | . . 1 5 6 5 Largest Inventory Capacity 25 | 8 20 20 25 25 25 Average Capacity 22 | 6 19 20 24 25 25 Most Carried 25 | 3 17 20 25 25 25 Average Carried 20 | 2 12 19 23 24 24 Final Capacity 25 | 8 20 20 25 25 25 Final Carried 25 | 3 17 20 25 25 18 Class Distribution -------------------- 89% | Mutant 10% | Scavenger-Mutant Dominant Class ---------------- Mutant | -10/Materials Mutant | -10/Mines Mutant | -9/Materials Mutant | -9/Mines Scavenger-Mutant | -9/Exiles Resources | -11 -10 -10 -9 -9 -9 ----------- Run | Scr Mat Min Mat Min Exi Matter Collected 2435 | 164 475 151 1309 196 140 Remotely . | . . . . . . Salvage Created 2911 | . 511 359 1692 343 6 Parts 162 | . 34 19 89 20 . Haulers Intercepted 8 | . 2 . 6 . . Recyclers Shooed . | . . . . . . Parts Field Recycled . | . . . . . . Retrieved Matter . | . . . . . . Parts Self-Destructed . | . . . . . . Prevented . | . . . . . . Kills | -11 -10 -10 -9 -9 -9 ------- Run | Scr Mat Min Mat Min Exi Combat Hostiles Destroyed 62 | . 11 9 32 8 2 Guns 52 | . 9 5 31 5 2 Cannons 1 | . . . . 1 . AOE 8 | . 2 4 . 2 . Classes Destroyed 10 | . 5 1 3 1 . Worker 2 | . 1 . . 1 . Builder 1 | . . . . 1 . Hauler 8 | . 2 . 6 . . Recycler 3 | . . . 1 2 . Watcher 4 | . 2 . 2 . . Swarmer 19 | . 6 2 7 4 . Grunt 28 | . 5 5 16 2 . Duelist 3 | . . . 1 2 . Sentry 8 | . . . 8 . . Assembled 9 | . . 2 . . 7 Best Kill Streak 5 | . 5 3 4 4 2 Combat Bots Only 5 | . 5 3 4 4 2 Max Kills in Single Turn 5 | . 2 1 2 2 5 Gunslinging 1 | . . . 1 . . Exploded 2 | . 2 1 . 2 . Melee . | . . . . . . Uniques/NPCs Destroyed 1 | . . 1 . . . YI-UF0 (-10/Mines) Combat | -11 -10 -10 -9 -9 -9 -------- Run | Scr Mat Min Mat Min Exi Damage Taken 3487 | . 377 314 1436 256 1104 Core 464 | . 30 32 285 . 117 Absorbed by Shields . | . . . . . . Redirected to Shielding 135 | . . 16 119 . . Regen/Repaired (Parts) 363 | . 131 . 232 . . Core Remaining (%) 87 | 100 . 75 . . . Volleys Fired 257 | . 44 30 120 22 41 Largest 2 | . 2 2 2 2 2 Hottest 70 | . 70 65 46 62 66 Shots Fired 480 | . 84 42 232 43 79 Gun 446 | . 81 37 231 23 74 Cannon 21 | . . 2 . 19 . Launcher 13 | . 3 3 1 1 5 Special . | . . . . . . Kinetic 415 | . 53 15 231 42 74 Thermal 28 | . 28 . . . . Explosive 13 | . 3 3 1 1 5 Electromagnetic 24 | . . 24 . . . Robot Hit Streak 21 | . 8 7 21 18 15 Robot Miss Streak 4 | . 4 2 3 2 2 Penetration Max . | . . . . . . Secondary Targets 6 | . . . 5 . 1 Max Gunslinging Chain 1 | . . . 1 . 1 Shots Hit Robots 353 | . 47 30 183 26 67 Core Hits 139 | . 23 18 63 13 22 Critical Kills . | . . . . . . Critical Parts Destroyed 1 | . . . 1 . . Critical Strikes 4 | . . . 1 2 1 Destroy 2 | . . . 1 . 1 Blast 2 | . . . . 2 . Melee Attacks 27 | . . 1 21 1 4 Impact 23 | . . 1 21 1 . Slashing . | . . . . . . Piercing . | . . . . . . Sneak Attacks 11 | . . . 6 1 4 Combat Hostiles . | . . . . . . Follow-up Attacks . | . . . . . . Damage Inflicted 6424 | . 676 722 2986 667 1373 Guns 4667 | . 564 358 2557 253 935 Cannons 223 | . . . . 223 . Explosions 1008 | . 75 347 . 148 438 Melee 472 | . . . 429 43 . Ramming 54 | . 37 17 . . . Kinetic 4413 | . 391 54 2557 476 935 Thermal 447 | . 173 126 . 148 . Explosive 734 | . 75 221 . . 438 Electromagnetic 304 | . . 304 . . . Impact 472 | . . . 429 43 . Slashing . | . . . . . . Piercing . | . . . . . . Highest Corruption . | . . . . . . Average Corruption . | . . . . . . Corruption Purged . | . . . . . . Corruption Blocked . | . . . . . . Overload Shots . | . . . . . . Overflow Damage 50 | . . 18 6 26 . Projectiles 13 | . . . . 13 . Explosions 18 | . . 18 . . . Melee 19 | . . . 6 13 . Knockbacks 3 | . . 1 . 2 . Impact 1 | . . 1 . . . Kinetic 2 | . . . . 2 . Secondary . | . . . . . . Self-Inflicted Damage 44 | . . 44 . . . Shots 2 | . . 2 . . . Rammed 18 | . 10 8 . . . Targets Rammed 20 | . 12 8 . . . Kicked . | . . . . . . Crushed 2 | . 2 . . . . Highest Temperature 138 | . 138 120 25 51 43 Average Temperature 28 | . 50 36 4 16 19 Received Heat Transfer 897 | . 84 81 564 48 120 Siege Activations . | . . . . . . Robots Corrupted 1 | . . 1 . . . Combat Hostiles . | . . . . . . Parts Fried 5 | . . 2 2 1 . Impact Corruptions 2 | . . . 1 1 . Robots Melted . | . . . . . . Combat Hostiles . | . . . . . . Parts Melted . | . . . . . . Heat Transferred 918 | . 518 200 . 200 . Parts Sabotaged . | . . . . . . Parts Stolen . | . . . . . . Parts Stripped . | . . . . . . Power Chain Reactions 1 | . . 1 . . . Missiles Intercepted . | . . . . . . Alert | -11 -10 -10 -9 -9 -9 ------- Run | Scr Mat Min Mat Min Exi Peak Influence 526 | . 150 170 526 209 . Initial 204 | . . 46 22 204 . Average 142 | . 79 48 273 96 . Maximum Alert Level 2 | . . . 2 1 . Low Security (%) 71 | 100 100 100 29 77 . Level 1 19 | . . . 45 22 . Level 2 8 | . . . 25 . . Level 3 . | . . . . . . Level 4 . | . . . . . . Level 5 . | . . . . . . High Security . | . . . . . . Max Security . | . . . . . . Squads Dispatched 7 | . 3 . 4 . . Investigation 5 | . 2 . 3 . . Extermination . | . . . . . . Reinforcement 2 | . 1 . 1 . . Assault . | . . . . . . Garrison . | . . . . . . Intercept . | . . . . . . Searches Triggered . | . . . . . . Construction Impeded . | . . . . . . Haulers Reinforced . | . . . . . . Active Scanning Responses . | . . . . . . Cargo Convoy Interrupts . | . . . . . . Stealth | -11 -10 -10 -9 -9 -9 --------- Run | Scr Mat Min Mat Min Exi Distress Signals 5 | . . . 5 . . Communications Jammed . | . . . . . . Distress Signals . | . . . . . . Times Spotted 89 | . 23 10 47 6 3 Peak Tracking Total 5 | . 4 4 4 4 5 Tactical Retreats . | . . . . . . Traps | -11 -10 -10 -9 -9 -9 ------- Run | Scr Mat Min Mat Min Exi Traps Triggered 1 | . . . 1 . . Indirectly . | . . . . . . Trap Hack Attempts . | . . . . . . Triggered . | . . . . . . Disarmed . | . . . . . . Reprogrammed . | . . . . . . Reused . | . . . . . . Traps Extracted . | . . . . . . Installed . | . . . . . . Triggered . | . . . . . . Machines | -11 -10 -10 -9 -9 -9 ---------- Run | Scr Mat Min Mat Min Exi Machines Disabled 9 | . . . 1 5 3 Max in Single Turn 5 | . . . 1 5 1 Machines Sabotaged . | . . . . . . Garrisons Compromised . | . . . . . . Overloaded Fab Kills . | . . . . . . Hacking | -11 -10 -10 -9 -9 -9 --------- Run | Scr Mat Min Mat Min Exi Machines Accessed 25 | . 10 . 12 1 2 Terminals 15 | . 7 . 8 . . Fabricators . | . . . . . . Repair Stations 3 | . 1 . 2 . . Recycling Units 4 | . 2 . 2 . . Scanalyzers . | . . . . . . Garrison Access . | . . . . . . Total Hacks 62 | . 24 . 35 1 2 Successful 43 | . 16 . 24 1 2 Failed 18 | . 7 . 11 . . Catastrophic 4 | . 2 . 2 . . Database Lockouts 1 | . 1 . . . . Manual 29 | . 14 . 14 . 1 Terminals 44 | . 18 . 26 . . Fabricators . | . . . . . . Repair Stations 11 | . 4 . 7 . . Recycling Units 4 | . 2 . 2 . . Scanalyzers . | . . . . . . Garrison Access . | . . . . . . Terminal Hacks 21 | . 7 . 11 1 2 Record 1 | . . . . . 1 Part Schematic 1 | . 1 . . . . Prototype ID Bank 3 | . 1 . 2 . . Open Door 1 | . . . . 1 . Emergency Access Points 1 | . . . 1 . . Locate Traps 8 | . 3 . 5 . . Recall Investigation 1 | . 1 . . . . Hauler Manifests 1 | . 1 . . . . Registered Components 1 | . . . 1 . . Zone Layout 2 | . . . 2 . . EX-Prototype ID Bank 1 | . . . . . 1 Fabricator Hacks . | . . . . . . Repair Station Hacks 10 | . 4 . 6 . . Scan Component 5 | . 2 . 3 . . Repair 5 | . 2 . 3 . . Recycling Unit Hacks . | . . . . . . Scanalyzer . | . . . . . . Garrison Access Hacks . | . . . . . . Unauthorized Hacks 12 | . 5 . 7 . . Terminals 8 | . 3 . 5 . . Assimilate 1 | . . . 1 . . Botnet 6 | . 3 . 3 . . Operators 1 | . . . 1 . . Fabricators . | . . . . . . Repair Stations . | . . . . . . Recycling Units 4 | . 2 . 2 . . Tunnel 4 | . 2 . 2 . . Scanalyzers . | . . . . . . Garrison Access . | . . . . . . Data Cores Recovered . | . . . . . . Used . | . . . . . . Hacking Detections 16 | . 8 . 8 . . Full Trace Events 1 | . . . 1 . . Feedback Events . | . . . . . . Feedback Blocked . | . . . . . . Robot Schematics Acquired . | . . . . . . Robots Built . | . . . . . . Authchips . | . . . . . . Time . | . . . . . . Total Robot Build Rating . | . . . . . . Part Schematics Acquired 1 | . 1 . . . . Parts Built . | . . . . . . Authchips . | . . . . . . Time . | . . . . . . Total Part Build Rating . | . . . . . . Parts Repaired 5 | . 2 . 3 . . Time 205 | . 52 . 153 . . Parts Recycled . | . . . . . . Recycled Matter . | . . . . . . Retrieved Matter . | . . . . . . Retrieved Components . | . . . . . . Parts Scanalyzed . | . . . . . . Part Schematics Acquired . | . . . . . . Parts Damaged . | . . . . . . Bothacking | -11 -10 -10 -9 -9 -9 ------------ Run | Scr Mat Min Mat Min Exi Used RIF Installer . | . . . . . . Robots Hacked 4 | . . . . . 4 Non-combat 3 | . . . . . 3 Combat 1 | . . . . . 1 Robot Hacks Applied 4 | . . . . . 4 parse_system 4 | . . . . . 4 Relay Couplers Released . | . . . . . . Fabnet Peak Effective % . | . . . . . . Robots Rewired . | . . . . . . Allies Hacked . | . . . . . . Hacks Repelled . | . . . . . . Allies | -11 -10 -10 -9 -9 -9 -------- Run | Scr Mat Min Mat Min Exi Total Allies 3 | . . 3 . . . Largest Group 3 | . . 3 . . . Highest-Rated Group 40 | . . 40 . . . Highest-Rated Ally 16 | . . 16 . . . Total Orders . | . . . . . . Ally Attacks 8 | . . 8 . . . Total Damage 54 | . . 54 . . . Kills 1 | . . 1 . . . Allies Corrupted . | . . . . . . Allies Melted . | . . . . . . Intel | -11 -10 -10 -9 -9 -9 ------- Run | Scr Mat Min Mat Min Exi Robot Analysis Total . | . . . . . . Derelict Logs Recovered 2 | . . 1 . 1 . Drone Launches . | . . . . . . Drone Recoveries . | . . . . . . Exploration | -11 -10 -10 -9 -9 -9 ------------- Run | Scr Mat Min Mat Min Exi Turns Passed 10137 | 73 2230 1446 2790 1757 1841 Spaces Moved 4223 | 41 859 553 1143 720 907 Core 3 | 3 . . . . . Treads 1453 | 38 859 553 3 . . Legs . | . . . . . . Wheels 2767 | . . . 1140 720 907 Hover . | . . . . . . Flight . | . . . . . . Fastest Speed 50 | 50 160 240 145 190 175 Average Speed 202 | 151 228 240 187 190 185 Slowest Speed 240 | 160 240 240 240 190 190 Overloaded Moves . | . . . . . . Propulsion Burnouts . | . . . . . . Robots Hopped . | . . . . . . Cave-ins Triggered . | . . . . . . Exploration Rate (%) 76 | 4 99 96 90 99 69 Regions Visited 5 Branch Regions 3 Pre-discovered Areas 6 | . 2 . 2 1 1 Known Exits Taken . | . . . . . . Unknown Exits Taken 5 | 1 1 1 1 1 . Scrap Searched 4 | . . 3 . 1 . Spaces Dug 57 | . 34 12 11 . . Terrain Destroyed 150 | . 34 39 16 25 36 Melee 11 | . . . 11 . . Projectile 1 | . . 1 . . . AOE 138 | . 34 38 5 25 36 Terrain Rammed . | . . . . . . Walls Destroyed . | . . . . . . Machines Disabled . | . . . . . . Actions | -11 -10 -10 -9 -9 -9 --------- Run | Scr Mat Min Mat Min Exi Total 5280 | 49 1026 617 1535 1064 989 Wait 539 | . 77 11 138 313 . Move 4218 | 40 858 552 1142 719 907 Hop . | . . . . . . Pick Up 69 | 3 16 5 33 1 11 Fast Attach 18 | 6 6 . 6 . . Attach 15 | . 1 . 8 . 6 Detach 1 | . . . 1 . . Swap 55 | . 4 8 30 5 8 Drop 58 | . 5 2 36 3 12 Fire 257 | . 44 30 120 22 41 Melee 27 | . . 1 21 1 4 Ram . | . . . . . . Kick . | . . . . . . Crush 20 | . 12 8 . . . Escape Stasis . | . . . . . . Rewire 3 | . 3 . . . . Trap . | . . . . . . Miscellaneous . | . . . . . . Route ------- -11/Scrapyard -10/Materials (discovered 4 exits: *Mat x3 / [*Min]) -10/Mines (discovered 2 exits: *Mat x2) -9/Materials (discovered 4 exits: [*Mat x3] / *Min) -9/Mines (discovered 3 exits: [*Mat x2] / *Exi) -9/Exiles History --------- Turn | Location | Event 2 | -11/Scrapyard | Discovered new exit (range 16) 74 | -11/Scrapyard | Entered Materials 316 | -10/Materials | Build established: Mutant 457 | -10/Materials | Discovered new exit (range 8) 773 | -10/Materials | Discovered new exit (range 9) 1373 | -10/Materials | Discovered new exit (range 8) 1751 | -10/Materials | Central database locked down 2047 | -10/Materials | Repaired Lgt. Treads 2074 | -10/Materials | Repaired Lgt. Treads 2114 | -10/Materials | Discovered new exit (range 16) 2304 | -10/Materials | Entered Mines 2440 | -10/Mines | Assisted by bots powering up and referring to "LRC-V3" 2817 | -10/Mines | YI-UF0 nonchalantly dropped a Grenade Launcher on the ground 2934 | -10/Mines | Destroyed YI-UF0 3098 | -10/Mines | Learned Materials security intel 3117 | -10/Mines | Discovered new exit (range 15) 3350 | -10/Mines | Excavation squad dispatched 3350 | -10/Mines | A large section of the Mines collapsed 3480 | -10/Mines | Discovered new exit (range 10) 3750 | -10/Mines | Entered Materials 3750 | -9/Materials | Evolved 2 slots: Propulsion x1, Utility x1 4202 | -9/Materials | Discovered new exit (range 8) 4655 | -9/Materials | Discovered new exit (range 7) 4869 | -9/Materials | Repaired Imp. Assault Rifle 4921 | -9/Materials | Repaired Imp. Assault Rifle 4964 | -9/Materials | Discovered new exit (range 10) 5469 | -9/Materials | Repaired Imp. Assault Rifle 5608 | -9/Materials | Discovered new exit (range 3) 5883 | -9/Materials | Core integrity fell below 50% 6540 | -9/Materials | Entered Mines 6559 | -9/Mines | Learned location of Zion (-6) 6685 | -9/Mines | Met a Derelict who couldn't figure out how to use a Trap Extractor 7185 | -9/Mines | Discovered new exit (range 9) 7287 | -9/Mines | Deemed a non-threat by the Exiles lab entrance 7287 | -9/Mines | Discovered new exit (range 5) 8007 | -9/Mines | Discovered new exit (range 12) 8297 | -9/Mines | Entered Exiles 8439 | -9/Exiles | Met 8R-AWN 8468 | -9/Exiles | Met EX-HEX 8516 | -9/Exiles | Met EX-BIN 8582 | -9/Exiles | Met EX-DEC 8849 | -9/Exiles | Aligned with FarCom system 8851 | -9/Exiles | Given EX-Vault access code 8891 | -9/Exiles | Opened EX-Vault 8931 | -9/Exiles | Warned to stay clear of 0b10 Research branches 9221 | -9/Exiles | Build established: Scavenger-Mutant 10010 | -9/Exiles | Attacked by the Exiles 10052 | -9/Exiles | Core integrity fell below 20% 10073 | -9/Exiles | Lost 6 parts (1p2n2u1w) 10138 | -9/Exiles | Destroyed by 8R-AWN with 8R-AWN's Boregun Last Messages --------------- 10083_ Critical hit (Destroy). 10083_ Lgt. Treads destroyed. 10084_ Destroyed 8R-AWN's Armor/TH. 10087_ Penetrated by HV Slug. 10088_ The unstable cave ceiling collapses. 10091_ HV Slug penetrates Machine. 10091_ Penetrated by HV Slug. 10091_ Critical hit (Destroy). 10091_ Lgt. Treads destroyed. 10095_ Penetrated by HV Slug. 10099_ HV Slug penetrates Machine. 10099_ Penetrated by HV Slug. 10112_ Critical hit (Destroy). 10112_ Imp. Assault Rifle destroyed. 10114_ Machine disabled. 10116_ Penetrated by HV Slug. 10132_ 8R-AWN suffers critical hit (Destroy). 10133_ Penetrated by HV Slug. 10136_ The unstable cave ceiling collapses. 10138_ Penetrated by HV Slug. Map ----- +----------------------------------------------------+ | """#?????????????????????????????????? | | """#?????????????????????????????????? | | """#?????????????????????????????????? | | """##????????????????????????????????? | | """""????????????????????????????????? | | """##????????????????????????????????? | | " "X" """"?????????????????????????????????? | | " """ #?????????????????????????????????? | | " """""""""#?????????????????????????????????? | | " ###########?????????????????????????????????? | | " #???????????????????????????????????????????? | | #???????????????????????????????????????????? | | ##??????????????????????????????????????????? | | ##???###########???????????????????????????? | | #####"""""""""##??????????????????????????? | | " """ """"##?????????????????????????? | | " #?????????????????????????? | | """#?????????????????????????? | | "a"#???????????#####?????????? | | " "##?????????##" #?????????? | | ""###???????#" #?????????? | | """ ""#??????##" ##????????? | | ##""" "#????### ###??????? | | ?#####""" ###??# ######## | | ?????##""" !!;#### #""""## | | ??????#"""" @!!;## | | ?????##"" g ## | | ??####"""" #### | | ###""" ""#?#"""""#### | | """" #" "##?#######??#### | | ######??????????????# | | ##???????????????????? | | ##????????????????????? | | "" ""#?????????????????????? | | # ##""" " " "" "##?????????????????????? | | # ######""" "" # ##??????????????????????? | | # #????###""""## # # #???????????????????????? | | # ####???###### # ## #????????????????????????? | | ! "!#??????????? # # ?????????????????????????? | | " !#??????????????# #?????????????????????????? | | " "#??????????????????????????????????????????? | | !!"" "#??????????????????????????????????????????? | | #######??????????????????????????????????????????? | | ?????????????????????????????????????????????????? | | ?????????????????????????????????????????????????? | | ?????????????????????????????????????????????????? | | ?????????????????????????????????????????????????? | | ?????????????????????????????????????????????????? | | ?????????????????????????????????????????????????? | | ?????????????????????????????????????????????????? | +----------------------------------------------------+ Best States ------------- Heat Dissipation 28 Energy Generation 14 Energy Capacity 280 Matter Stores 450 Matter Capacity 450 Sight Range 16 Terrain Scan Density 10 Armor Coverage 300 Propulsion Shielding 66 Evasion (%) 40 Recoil Reduction 3 Item Schematics ----------------- Huge Storage Unit | -10/Materials | Hacked Robot Schematics ------------------ None Fabricated ------------ Nothing Alien Tech Used ----------------- None Achievements -------------- None Challenges ------------ None Game ------ Seed ClaymoresGammaSegregator Manual? 0 Play Time 00:57:07 Cumulative 311.8 hours Start 2022.06.30 @ 15:11:27 End 2022.07.02 @ 03:17:19 Sessions 6 Manual Loads 0 Difficulty Rogue Special Mode None Game No. 138 Rogue 138 Adventurer 0 Explorer 0 Win Type - Total 8 Types 5/0/1/1/0/0/0/1/0 Lore% 88 Gallery% 90 Achievement% 70 Wizard Run 0 Options --------- ASCII 1 Keyboard 1 Movement Vi Keybinds 0 Fullscreen 2 Font 18/Cog Map View 76x50 Tactical HUD 1 Map Filters NONE Filters NONE Steam 0 RUN: 54818d81-d24b-49da-8ba1-db1924f3fde3